Cogmind - Beta 13 *** ADVENTURER MODE // 2024.07.30 @ 07:33:45 Player: Jefffff Result: Destroyed by 80-3JU(R) with Subdweller Machine Gun Performance ------------- Evolutions (0) 0 Regions Visited (3) 600 Robots Destroyed (12) 60 Value Destroyed (219) 219 Prototype IDs (0) 0 Alien Tech Used (0) 0 Bonus (0) 0 TOTAL SCORE: 879 Bonus ------- None Cogmind --------- Core Integrity 0/250 Matter 300/300 Energy 275/275 System Corruption 0% Temperature Cool (0) Movement Core (100) Ox1 Location -10/Subcaves Parts ------- > --- POWER (1) -------- Deuterium Engine > --- PROPULSION (2) --- (None) > --- UTILITY (2) ------ Advanced Weight Redist. System Structural Scanner > --- WEAPON (2) ------- Heavy Flail > --- INVENTORY (5) ---- Improved Sensor Array Improved Power Shielding Hardlight Generator High-powered Shotgun Mining Laser Peak State ------------ > --- POWER ------------ Deuterium Engine > --- PROPULSION ------- Hover Unit > --- UTILITY ---------- Advanced Weight Redist. System Structural Scanner > --- WEAPON ----------- High-powered Shotgun Heavy Flail > --- INVENTORY -------- Improved Sensor Array Improved Power Shielding Hardlight Generator Mining Laser [Rating: 15] Favorites ----------- Power Deuterium Engine Engine Deuterium Engine Propulsion Compact Wheel Wheel Compact Wheel Hover Unit Hover Unit Utility Structural Scanner Device Structural Scanner Storage Small Storage Unit Weapon Light Assault Rifle Ballistic Gun Light Assault Rifle Impact Weapon Heavy Flail Build | -11 -10 -10 -10 ------- Run | Yrd Mat Min Sub Slots Evolved . | . . . . Power . | . . . . Propulsion . | . . . . Utility . | . . . . Weapon . | . . . . Parts Attached 22 | 5 8 9 . Power 3 | . 2 1 . Engine 3 | . 2 1 . Core . | . . . . Reactor . | . . . . Propulsion 7 | 2 1 4 . Treads . | . . . . Leg . | . . . . Wheel 3 | 2 1 . . Hover 4 | . . 4 . Flight . | . . . . Utility 6 | 1 3 2 . Device 3 | . 1 2 . Storage 3 | 1 2 . . Processor . | . . . . Hackware . | . . . . Protection . | . . . . Artifact . | . . . . Weapon 6 | 2 2 2 . Energy Gun . | . . . . Energy Cannon . | . . . . Ballistic Gun 5 | 2 2 1 . Ballistic Cannon . | . . . . Launcher . | . . . . Special Weapon . | . . . . Impact Weapon 1 | . . 1 . Slashing Weapon . | . . . . Piercing Weapon . | . . . . Special Melee Weapon . | . . . . Unidentified Prototypes . | . . . . Parts Lost 8 | . . 7 1 Power 1 | . . 1 . Propulsion 6 | . . 5 1 Utility 1 | . . 1 . Weapon . | . . . . Highest Loss Streak 6 | . . 6 1 To Critical Strikes . | . . . . Average Slot Usage (%) 73 | . 84 65 65 Engine 8 | . 3 10 14 Wheel 14 | . 28 4 . Hover 6 | . . 12 8 Device 17 | . 9 21 28 Storage 7 | . 14 2 . Ballistic Gun 14 | . 28 4 . Impact Weapon 5 | . . 7 14 Naked Turns 1 | . . 1 . Heaviest Build 17 | 7 17 17 13 Greatest Support 26 | 26 26 26 15 Greatest Overweight (x) 4 | . . 4 1 Average Overweight (x) . | . . . . Largest Inventory Capacity 10 | 8 10 10 5 Average Capacity 6 | 6 8 5 5 Most Carried 10 | 4 10 10 5 Average Carried 5 | 1 6 5 5 Final Capacity 10 | 8 10 5 5 Final Carried 10 | 1 10 5 5 Class Distribution -------------------- 100% | Mutant Dominant Class ---------------- Mutant | -10/Materials Mutant | -10/Mines Mutant | -10/Subcaves Resources | -11 -10 -10 -10 ----------- Run | Yrd Mat Min Sub Matter Collected 433 | 80 155 198 . Remotely . | . . . . Salvage Created 288 | . 155 13 120 Parts 27 | . 17 6 4 Haulers Intercepted . | . . . . Recyclers Shooed 1 | . . 1 . Parts Field Recycled . | . . . . Retrieved Matter . | . . . . Parts Self-Destructed . | . . . . Prevented . | . . . . Kills | -11 -10 -10 -10 ------- Run | Yrd Mat Min Sub Combat Hostiles Destroyed 9 | . 6 . 3 Melee 1 | . . . 1 Guns 6 | . 6 . . Classes Destroyed 4 | . 2 1 1 Tunneler 1 | . . 1 . Watcher 2 | . 2 . . Swarmer 6 | . 6 . . Subdweller 3 | . . . 3 Best Kill Streak 4 | . 4 1 2 Combat Bots Only 3 | . 3 . 2 Max Kills in Single Turn 2 | . 2 1 1 Gunslinging 1 | . 1 . . Exploded . | . . . . Melee 1 | . . . 1 Uniques/NPCs Destroyed . | . . . . Combat | -11 -10 -10 -10 -------- Run | Yrd Mat Min Sub Hostile Shots Fired 56 | . 21 21 14 Missed 8 | . 2 2 4 Damage Taken 744 | . 108 484 152 Core 259 | . 21 163 75 Absorbed by Shields . | . . . . Ignored by Resistances 211 | . 38 129 44 Core Remaining (%) 100 | 100 . . . Volleys Fired 24 | . 23 1 . Largest 2 | . 2 2 . Hottest 40 | . 40 40 . Shots Fired 48 | . 46 2 . Gun 48 | . 46 2 . Cannon . | . . . . Launcher . | . . . . Special . | . . . . Kinetic 48 | . 46 2 . Thermal . | . . . . Explosive . | . . . . Electromagnetic . | . . . . Robot Hit Streak 6 | . 6 5 . Robot Miss Streak 2 | . 2 . . Penetration Max . | . . . . Secondary Targets 2 | . 2 . . Max Gunslinging Chain 1 | . 1 . . Shots Hit Robots 41 | . 29 2 10 Core Hits 16 | . 14 1 1 Critical Kills . | . . . . Critical Parts Destroyed 3 | . 1 . 2 Critical Strikes 3 | . 1 . 2 Destroy 1 | . 1 . . Smash 2 | . . . 2 Melee Attacks 11 | . . . 11 Impact 11 | . . . 11 Slashing . | . . . . Piercing . | . . . . Sneak Attacks . | . . . . Combat Hostiles . | . . . . Follow-up Attacks . | . . . . Damage Inflicted 712 | . 239 29 444 Guns 255 | . 239 16 . Cannons . | . . . . Explosions . | . . . . Melee 444 | . . . 444 Ramming 13 | . . 13 . Kinetic 255 | . 239 16 . Thermal . | . . . . Explosive . | . . . . Electromagnetic . | . . . . Impact 444 | . . . 444 Slashing . | . . . . Piercing . | . . . . Highest Corruption . | . . . . Average Corruption . | . . . . Corruption Purged . | . . . . Corruption Blocked . | . . . . Overload Shots . | . . . . Overflow Damage 134 | . . . 134 Projectiles . | . . . . Explosions . | . . . . Melee 134 | . . . 134 Knockbacks 2 | . . . 2 Impact 2 | . . . 2 Kinetic . | . . . . Secondary . | . . . . Self-Inflicted Damage 6 | . . 6 . Shots . | . . . . Rammed 1 | . . 1 . Targets Rammed 1 | . . 1 . Kicked . | . . . . Crushed . | . . . . Highest Temperature 1 | . . 1 . Average Temperature 1 | . . 1 . Received Heat Transfer 50 | . . 26 24 Siege Activations . | . . . . Robots Corrupted . | . . . . Combat Hostiles . | . . . . Parts Fried 3 | . . . 3 Impact Corruptions 4 | . . . 4 Robots Melted . | . . . . Combat Hostiles . | . . . . Parts Melted . | . . . . Heat Transferred . | . . . . Parts Sabotaged . | . . . . Parts Stolen . | . . . . Parts Stripped . | . . . . Power Chain Reactions . | . . . . Alert | -11 -10 -10 -10 ------- Run | Yrd Mat Min Sub Peak Influence 199 | . 199 65 . Initial . | . . . . Average 54 | . 72 40 . Maximum Alert Level . | . . . . Low Security (%) 100 | 100 100 100 . Level 1 . | . . . . Level 2 . | . . . . Level 3 . | . . . . Level 4 . | . . . . Level 5 . | . . . . High Security . | . . . . Max Security . | . . . . Squads Dispatched . | . . . . Investigation . | . . . . Extermination . | . . . . Reinforcement . | . . . . Assault . | . . . . Garrison . | . . . . Intercept . | . . . . Searches Triggered . | . . . . Construction Impeded . | . . . . Haulers Reinforced . | . . . . Active Scanning Responses . | . . . . Cargo Convoy Interrupts . | . . . . Stealth | -11 -10 -10 -10 --------- Run | Yrd Mat Min Sub Distress Signals 1 | . 1 . . Communications Jammed . | . . . . Distress Signals . | . . . . Times Spotted 29 | . 10 13 6 Peak Tracking Total 11 | . 6 11 2 Tactical Retreats 4 | . . 3 1 Traps | -11 -10 -10 -10 ------- Run | Yrd Mat Min Sub Traps Triggered . | . . . . Indirectly . | . . . . Trap Hack Attempts . | . . . . Triggered . | . . . . Disarmed . | . . . . Reprogrammed . | . . . . Reused . | . . . . Traps Extracted . | . . . . Installed . | . . . . Triggered . | . . . . Machines | -11 -10 -10 -10 ---------- Run | Yrd Mat Min Sub Machines Disabled . | . . . . Max in Single Turn . | . . . . Machines Repaired . | . . . . Machines Dismantled . | . . . . Machines Sabotaged . | . . . . Overloaded Fab Kills . | . . . . Hacking | -11 -10 -10 -10 --------- Run | Yrd Mat Min Sub Machines Accessed 4 | . 2 1 1 Terminals 2 | . 2 . . Fabricators . | . . . . Repair Stations . | . . . . Recycling Units . | . . . . Scanalyzers . | . . . . Garrison Access . | . . . . Total Hacks 7 | . 5 1 1 Successful 4 | . 2 1 1 Failed 3 | . 3 . . Catastrophic . | . . . . Database Lockouts . | . . . . Manual 4 | . 4 . . Terminals 5 | . 5 . . Fabricators . | . . . . Repair Stations . | . . . . Recycling Units . | . . . . Scanalyzers . | . . . . Garrison Access . | . . . . Terminal Hacks 2 | . . 1 1 Record 1 | . . . 1 Open Door 1 | . . 1 . Fabricator Hacks . | . . . . Repair Station Hacks . | . . . . Recycling Unit Hacks . | . . . . Scanalyzer . | . . . . Garrison Access Hacks . | . . . . Unauthorized Hacks 2 | . 2 . . Terminals 2 | . 2 . . Botnet 2 | . 2 . . Fabricators . | . . . . Repair Stations . | . . . . Recycling Units . | . . . . Scanalyzers . | . . . . Garrison Access . | . . . . Data Cores Recovered . | . . . . Used . | . . . . Hacking Detections 2 | . 2 . . Full Trace Events . | . . . . Feedback Events . | . . . . Feedback Blocked . | . . . . Robot Schematics Acquired . | . . . . Robots Built . | . . . . Authchips . | . . . . Time . | . . . . Total Robot Build Rating . | . . . . Part Schematics Acquired . | . . . . Parts Built . | . . . . Authchips . | . . . . Time . | . . . . Total Part Build Rating . | . . . . Parts Repaired . | . . . . Time . | . . . . Parts Recycled . | . . . . Recycled Matter . | . . . . Retrieved Matter . | . . . . Retrieved Components . | . . . . Parts Scanalyzed . | . . . . Part Schematics Acquired . | . . . . Parts Damaged . | . . . . Bothacking | -11 -10 -10 -10 ------------ Run | Yrd Mat Min Sub Used RIF Installer . | . . . . Robots Hacked . | . . . . Non-combat . | . . . . Combat . | . . . . Robot Hacks Applied . | . . . . Relay Couplers Released . | . . . . Fabnet Peak Effective % . | . . . . Robots Rewired . | . . . . Allies Hacked . | . . . . Hacks Repelled . | . . . . Allies | -11 -10 -10 -10 -------- Run | Yrd Mat Min Sub Total Allies 3 | . . 3 . Largest Group 3 | . . 3 . Highest-Rated Group 40 | . . 40 . Highest-Rated Ally 16 | . . 16 . Total Orders . | . . . . Ally Attacks 2 | . . 2 . Total Damage 27 | . . 27 . Kills . | . . . . Allies Corrupted . | . . . . Allies Melted . | . . . . Intel | -11 -10 -10 -10 ------- Run | Yrd Mat Min Sub Robot Analysis Total . | . . . . Derelict Logs Recovered 1 | . . 1 . Drone Launches . | . . . . Drone Recoveries . | . . . . Exploration | -11 -10 -10 -10 ------------- Run | Yrd Mat Min Sub Turns Passed 1015 | 34 415 413 153 Spaces Moved 1096 | 31 358 559 148 Core 50 | 12 . 2 36 Treads . | . . . . Legs . | . . . . Wheels 444 | 19 358 67 . Hover 602 | . . 490 112 Flight . | . . . . Fastest Speed 50 | 50 90 50 60 Average Speed 73 | 74 90 63 69 Slowest Speed 250 | 90 90 250 100 Overloaded Moves . | . . . . Propulsion Burnouts . | . . . . Robots Hopped . | . . . . Cave-ins Triggered . | . . . . Exploration Rate (%) 35 | 3 48 85 7 Regions Visited 3 Branch Regions 2 Pre-discovered Areas 1 | . . 1 . Known Exits Taken . | . . . . Unknown Exits Taken 3 | 1 1 1 . Scrap Searched 6 | . . 1 5 Spaces Dug . | . . . . Terrain Destroyed . | . . . . Melee . | . . . . Projectile . | . . . . AOE . | . . . . Terrain Rammed . | . . . . Walls Destroyed . | . . . . Machines Disabled . | . . . . Actions | -11 -10 -10 -10 --------- Run | Yrd Mat Min Sub Total 1253 | 41 418 613 181 Wait 61 | . . 39 22 Move 1093 | 30 357 558 148 Hop . | . . . . Pick Up 28 | 6 18 4 . Fast Attach 5 | . 1 4 . Attach 11 | 5 1 5 . Detach 1 | . . 1 . Swap 6 | . 6 . . Drop 12 | . 12 . . Fire 24 | . 23 1 . Melee 11 | . . . 11 Ram 1 | . . 1 . Kick . | . . . . Crush . | . . . . Escape Stasis . | . . . . Rewire . | . . . . Trap . | . . . . Miscellaneous . | . . . . Route ------- -11/Scrapyard -10/Materials (discovered 2 exits: [*Mat] / *Min) -10/Mines (discovered 3 exits: [*Mat x2] / *Sub) -10/Subcaves History --------- Turn | Location | Event 5 | -11/Scrapyard | Discovered new exit (range 16) 35 | -11/Scrapyard | Entered Materials 140 | -10/Materials | Discovered new exit (range 13) 303 | -10/Materials | Build established: Mutant 415 | -10/Materials | Discovered new exit (range 12) 450 | -10/Materials | Entered Mines 451 | -10/Mines | Assisted by bots powering up and referring to "LRC-V3" 472 | -10/Mines | Discovered new exit (range 8) 488 | -10/Mines | Assembled infested the area 493 | -10/Mines | Assisted by a Guerilla fighting off Assembled 527 | -10/Mines | Released all parts (3) 536 | -10/Mines | Core integrity fell below 50% 564 | -10/Mines | Lost 4 allies 565 | -10/Mines | Discovered new exit (range 9) 568 | -10/Mines | Lost 6 parts (1p4n1u) 602 | -10/Mines | Learned location of Zion (-6) 616 | -10/Mines | Met a Derelict who couldn't figure out how to use a Trap Extractor 830 | -10/Mines | Discovered new exit (range 5) 863 | -10/Mines | Entered Subcaves 870 | -10/Subcaves | Visited Clippyterm 899 | -10/Subcaves | Core integrity fell below 20% 978 | -10/Subcaves | Disturbed a concealed Subdweller 1016 | -10/Subcaves | Destroyed by 80-3JU(R) with Subdweller Machine Gun Last Messages --------------- 00965_ W6-D0R(R) system terminally corrupted. 00965_ Disposable Heat Sink fried. 00965_ Sub. Power Source fried. 00973_ Searching scrap... 00973_ Found Sub. Optics. 00973_ Found Battle Rifle. 00973_ Found 12 Matter. 00974_ Searching scrap... 00974_ Found Sub. Beam Cannon. 00974_ Found 24 Matter. 00978_ 80-3JU(R) angrily emerges from the Twisted Machinery. 01002_ Searching scrap... 01002_ Found Battle Rifle. 01002_ Found Sub. Optics. 01002_ Found 17 Matter. 01005_ Searching scrap... 01005_ Found Flamer. 01005_ Found Mak. Light Armor Plating. 01005_ Found 38 Matter. Map ----- +----------------------------------------------------+ | ?????????????## #### ##????????????? | | ?????????????## ######????????????? | | ?????????????## ######????????????? | | ?????????????### ###??????????????? | | ?????????????### ###?????????????? | | ??????????????### ###?????????????? | | ??????????????### ##?????????????? | | ??????????????## ###????????????? | | ??????????????#### #####???????????? | | ??????????????#### # ###???????????? | | ??????????????### ###??????????? | | ??????????????#### ####?????????? | | ??????????????## ####????????? | | ????############ #####??????? | | ???############# ####??????? | | ???###$""###""### ##??????? | | ???##$ ""#%! "### ###??????? | | ???## #%] "## # ######??????? | | ???## &"& [ "## # #####???????? | | ???## & # ## ##?????????? | | ???## " $#%## ##R ## ##?????????? | | ???##"" ###&# R#< # ###?????????? | | ???#### ## # # ###?????????? | | ???######## # % ???? | | ???#### # #"" % % ???? | | ???###" # @ ###" ## ##?????? | | ???##%!["# <## #####?????? | | ???##|"!"#< [=<### ##????????? | | ???###"%###<%##### ###????????? | | ???##############? ####????????? | | ????###########?? ###?????????? | | ?????????????????## ###??????????? | | ?????????????????### ##??????????? | | ??????????????????### ##??????????? | | ???????????????????## ##??????????? | | ????????????????????? #??????????? | | ?????????????????????? ???????????? | | ????????????????????????????????????? | | ????????????????????????????????????? | | ????????????????????????????????????? | | ????????????????????????????????????? | | ????????????????????????????????????? | | ????????????????????????????????????? | | ????????????????????????????????????? | | ????????????????????????????????????? | | ????????????????????????????????????? | | ????????????????????????????????????? | | ????????????????????????????????????? | | ????????????????????????????????????? | | ????????????????????????????????????? | +----------------------------------------------------+ Best States ------------- Heat Dissipation 25 Energy Generation 14 Energy Capacity 275 Matter Stores 300 Matter Capacity 300 Sight Range 16 Terrain Scan Density 10 ECM Strength 1 Additional Mass Support 9 Resistance: KI 20 Resistance: TH 20 Resistance: EX 20 Resistance: EM 20 Resistance: I 20 Resistance: S 20 Resistance: P 20 Evasion (%) 53 Offensive Hacking 10 Item Schematics ----------------- None Robot Schematics ------------------ None Fabricated ------------ Nothing Alien Tech Used ----------------- None Achievements -------------- None Challenges ------------ None Game ------ Seed ShockSigixBooster Manual? 0 Play Time 00:15:05 Cumulative 102.5 hours Start 2024.07.30 @ 07:01:32 End 2024.07.30 @ 07:33:45 Sessions 1 Manual Loads 0 Difficulty Adventurer Special Mode None Game No. 140 Rogue 0 Adventurer 140 Explorer 0 Win Type - Total 0 Types 0/0/0/0/0/0/0/0/0 Lore% 46 Gallery% 50 Achievement% 37 Wizard Run 0 Options --------- Layout 2 ASCII 0 Keyboard 0 Movement Mouse Keybinds 0 Fullscreen 2 Font 48/Terminus Map View 50x44 Zoom Use 0% Tactical HUD 1 Map Filters NONE Filters NONE Steam 1 RUN: 2e5348b6-2135-4d37-9c50-472650a9980b